Cogmind - Beta 13 @@@ ROGUE MODE // 2024.07.07 @ 02:16:24 Player: CatPlusPlus Result: Destroyed by D-53 Grenadier with Mini Grenade Launcher Performance ------------- Evolutions (0) 0 Regions Visited (2) 400 Robots Destroyed (25) 125 Value Destroyed (440) 440 Prototype IDs (2) 40 Alien Tech Used (0) 0 Bonus (0) 0 TOTAL SCORE: 1005 Bonus ------- None Cogmind --------- Core Integrity 0/250 Matter 242/300 Energy 85/100 System Corruption 10% Temperature Cool (0) Movement Core (1400) Ox27 Location -10/Mines Parts ------- > --- POWER (1) -------- (None) > --- PROPULSION (2) --- (None) > --- UTILITY (2) ------ Huge Storage Unit > --- WEAPON (2) ------- Light Cannon > --- INVENTORY (25) --- Ion Engine Light Treads Light Treads Light Treads Compact Wheel Heat Sink Medium Storage Unit High-capacity Storage Unit High-capacity Matter Pod (200) Experimental Sensor Array Improved Terrain Scanner Seismic Detector Transport Network Coupler Improved Targeting Computer Shield Generator Shield Generator Particle Gun Particle Gun Improved Medium Laser Improved Medium Laser Improved Medium Laser Hammer Peak State ------------ > --- POWER ------------ Ion Engine > --- PROPULSION ------- Light Treads Light Treads > --- UTILITY ---------- Huge Storage Unit Experimental Sensor Array > --- WEAPON ----------- Improved Medium Laser Light Cannon > --- INVENTORY -------- Ion Engine Light Treads Light Treads Light Treads Compact Wheel Heat Sink Medium Storage Unit High-capacity Storage Unit High-capacity Matter Pod Improved Terrain Scanner Seismic Detector Transport Network Coupler Improved Targeting Computer Light Armor Plating Light Armor Plating Shield Generator Shield Generator Particle Gun Particle Gun Improved Medium Laser Improved Medium Laser Improved Medium Laser Assault Rifle Grenade Launcher Hammer [Rating: 20] Favorites ----------- Power Ion Engine Engine Ion Engine Propulsion Light Treads Treads Light Treads Utility Seismic Detector Device Seismic Detector Storage High-capacity Storage Unit Protection Light Armor Plating Weapon Light Cannon Energy Gun Improved Medium Laser Energy Cannon Beam Cannon Ballistic Gun Light Assault Rifle Ballistic Cannon Light Cannon Launcher Grenade Launcher Build | -11 -10 -10 ------- Run | Yrd Mat Min Slots Evolved . | . . . Power . | . . . Propulsion . | . . . Utility . | . . . Weapon . | . . . Parts Attached 27 | 7 12 8 Power 3 | 1 2 . Engine 3 | 1 2 . Core . | . . . Reactor . | . . . Propulsion 3 | 2 1 . Treads 3 | 2 1 . Leg . | . . . Wheel . | . . . Hover . | . . . Flight . | . . . Utility 8 | 2 2 4 Device 3 | 1 . 2 Storage 3 | 1 2 . Processor . | . . . Hackware . | . . . Protection 2 | . . 2 Artifact . | . . . Weapon 13 | 2 7 4 Energy Gun 1 | . 1 . Energy Cannon 1 | . 1 . Ballistic Gun 3 | 2 . 1 Ballistic Cannon 5 | . 3 2 Launcher 3 | . 2 1 Special Weapon . | . . . Impact Weapon . | . . . Slashing Weapon . | . . . Piercing Weapon . | . . . Special Melee Weapon . | . . . Unidentified Prototypes 2 | . 1 1 Corrupted Parts 1 | . 1 . System Corruption 4 | . 4 . Parts Lost 8 | . . 8 Power 1 | . . 1 Propulsion 2 | . . 2 Utility 2 | . . 2 Weapon 3 | . . 3 Highest Loss Streak 8 | . . 8 To Critical Strikes . | . . . Average Slot Usage (%) 99 | . 99 98 Engine 13 | . 14 13 Treads 27 | . 27 27 Device 13 | . 14 13 Storage 14 | . 14 14 Energy Gun 12 | . 12 13 Ballistic Gun 1 | . 1 . Ballistic Cannon 13 | . 13 13 Naked Turns . | . . . Heaviest Build 92 | 13 92 92 Greatest Support 40 | 40 40 40 Greatest Overweight (x) 2 | 1 2 2 Average Overweight (x) 1 | . 1 2 Largest Inventory Capacity 25 | 8 25 25 Average Capacity 20 | 7 20 25 Most Carried 25 | 7 25 25 Average Carried 19 | 3 19 24 Final Capacity 25 | 8 25 25 Final Carried 25 | 7 25 22 Class Distribution -------------------- 100% | Mutant Dominant Class ---------------- Mutant | -10/Materials Mutant | -10/Mines Resources | -11 -10 -10 ----------- Run | Yrd Mat Min Matter Collected 960 | 251 657 52 Remotely . | . . . Salvage Created 774 | 106 647 21 Parts 58 | 10 48 . Haulers Intercepted 2 | . 2 . Recyclers Shooed 1 | . 1 . Parts Field Recycled . | . . . Retrieved Matter . | . . . Parts Self-Destructed . | . . . Prevented . | . . . Kills | -11 -10 -10 ------- Run | Yrd Mat Min Combat Hostiles Destroyed 19 | . 14 5 Guns 5 | . 5 . Cannons 6 | . 6 . AOE 8 | . 3 5 Classes Destroyed 8 | 2 5 1 Worker 1 | . 1 . Tunneler 2 | 2 . . Hauler 2 | . 2 . Recycler 3 | 1 2 . Watcher 3 | . 3 . Swarmer 6 | . 6 . Grunt 8 | . 8 . Assembled 5 | . . 5 Best Kill Streak 5 | 3 3 5 Combat Bots Only 5 | . 3 5 Max Kills in Single Turn 4 | 1 2 4 Gunslinging . | . . . Exploded 4 | . 2 4 Melee . | . . . Uniques/NPCs Destroyed . | . . . Combat | -11 -10 -10 -------- Run | Yrd Mat Min Hostile Shots Fired 83 | . 38 45 Missed 18 | . 11 7 Damage Taken 1378 | . 302 1076 Core 255 | . 43 212 Absorbed by Shields . | . . . Regen/Repaired (Parts) 58 | . 58 . Core Remaining (%) 100 | 100 . . Volleys Fired 61 | 6 47 8 Largest 2 | 2 2 2 Hottest 95 | 40 95 76 Shots Fired 108 | 12 86 10 Gun 57 | 12 37 8 Cannon 46 | . 46 . Launcher 5 | . 3 2 Special . | . . . Kinetic 69 | 12 51 6 Thermal 34 | . 32 2 Explosive 5 | . 3 2 Electromagnetic . | . . . Robot Hit Streak 7 | 5 7 2 Robot Miss Streak 6 | 1 6 1 Penetration Max . | . . . Secondary Targets . | . . . Shots Hit Robots 57 | 7 45 5 Core Hits 44 | 5 26 13 Critical Kills . | . . . Critical Parts Destroyed . | . . . Critical Strikes 2 | . 2 . Burn 1 | . 1 . Blast 1 | . 1 . Melee Attacks . | . . . Impact . | . . . Slashing . | . . . Piercing . | . . . Sneak Attacks . | . . . Combat Hostiles . | . . . Follow-up Attacks . | . . . Damage Inflicted 1349 | 58 1036 255 Guns 431 | 58 321 52 Cannons 454 | . 454 . Explosions 464 | . 261 203 Melee . | . . . Ramming . | . . . Kinetic 585 | 58 475 52 Thermal 300 | . 300 . Explosive 464 | . 261 203 Electromagnetic . | . . . Impact . | . . . Slashing . | . . . Piercing . | . . . Highest Corruption 10 | . 6 10 Average Corruption 5 | . 5 6 Corruption Purged . | . . . Corruption Blocked . | . . . Effects 71 | . 57 14 Message Errors 17 | . 15 2 Matter Fused 17 | . 14 3 Heat Flow Errors 5 | . 4 1 Energy Discharges 9 | . 7 2 Parts Rejected 1 | . 1 . Parts Fused 1 | . . 1 Data Loss (minor) 5 | . 4 1 Data Loss (major) 8 | . 5 3 Misfires 6 | . 5 1 Alerts 1 | . 1 . Weapon Failures 1 | . 1 . Overload Shots . | . . . Overflow Damage 12 | . 12 . Projectiles . | . . . Explosions 12 | . 12 . Melee . | . . . Knockbacks 5 | . 5 . Impact . | . . . Kinetic 5 | . 5 . Secondary . | . . . Self-Inflicted Damage 11 | . . 11 Shots 1 | . . 1 Rammed . | . . . Targets Rammed . | . . . Kicked . | . . . Crushed . | . . . Highest Temperature 262 | . 262 201 Average Temperature 63 | . 64 58 Received Heat Transfer 185 | . 105 80 Siege Activations . | . . . Robots Corrupted . | . . . Combat Hostiles . | . . . Parts Fried . | . . . Impact Corruptions . | . . . Robots Melted . | . . . Combat Hostiles . | . . . Parts Melted . | . . . Heat Transferred 703 | . 703 . Parts Sabotaged . | . . . Parts Stolen . | . . . Parts Stripped . | . . . Power Chain Reactions . | . . . Alert | -11 -10 -10 ------- Run | Yrd Mat Min Peak Influence 229 | 15 229 64 Initial 64 | . 9 64 Average 110 | 6 123 62 Maximum Alert Level 1 | . 1 . Low Security (%) 91 | 100 89 100 Level 1 8 | . 10 . Level 2 . | . . . Level 3 . | . . . Level 4 . | . . . Level 5 . | . . . High Security . | . . . Max Security . | . . . Squads Dispatched 4 | . 4 . Investigation 2 | . 2 . Extermination . | . . . Reinforcement 2 | . 2 . Assault . | . . . Garrison . | . . . Intercept . | . . . Searches Triggered . | . . . Construction Impeded . | . . . Haulers Reinforced . | . . . Active Scanning Responses . | . . . Cargo Convoy Interrupts . | . . . Stealth | -11 -10 -10 --------- Run | Yrd Mat Min Distress Signals 1 | . 1 . Communications Jammed . | . . . Distress Signals . | . . . Times Spotted 43 | . 23 20 Peak Tracking Total 14 | . 4 14 Tactical Retreats . | . . . Traps | -11 -10 -10 ------- Run | Yrd Mat Min Traps Triggered 2 | . 2 . Indirectly . | . . . Trap Hack Attempts . | . . . Triggered . | . . . Disarmed . | . . . Reprogrammed . | . . . Reused . | . . . Traps Extracted . | . . . Installed . | . . . Triggered . | . . . Machines | -11 -10 -10 ---------- Run | Yrd Mat Min Machines Disabled 1 | . 1 . Max in Single Turn 1 | . 1 . Machines Repaired . | . . . Machines Dismantled . | . . . Machines Sabotaged . | . . . Overloaded Fab Kills . | . . . Hacking | -11 -10 -10 --------- Run | Yrd Mat Min Machines Accessed 7 | . 7 . Terminals 4 | . 4 . Fabricators . | . . . Repair Stations 1 | . 1 . Recycling Units 2 | . 2 . Scanalyzers . | . . . Garrison Access . | . . . Total Hacks 21 | . 21 . Successful 13 | . 13 . Failed 8 | . 8 . Catastrophic 2 | . 2 . Database Lockouts . | . . . Manual 12 | . 12 . Terminals 12 | . 12 . Fabricators . | . . . Repair Stations 3 | . 3 . Recycling Units 6 | . 6 . Scanalyzers . | . . . Garrison Access . | . . . Terminal Hacks 6 | . 6 . Part Schematic 2 | . 2 . Robot Analysis 2 | . 2 . Locate Traps 1 | . 1 . Hauler Manifests 1 | . 1 . Fabricator Hacks . | . . . Repair Station Hacks 3 | . 3 . Scan Component 2 | . 2 . Repair 1 | . 1 . Recycling Unit Hacks 1 | . 1 . Retrieve Components 1 | . 1 . Scanalyzer . | . . . Garrison Access Hacks . | . . . Unauthorized Hacks 3 | . 3 . Terminals 1 | . 1 . Assimilate 1 | . 1 . Fabricators . | . . . Repair Stations . | . . . Recycling Units 2 | . 2 . Tunnel 2 | . 2 . Scanalyzers . | . . . Garrison Access . | . . . Data Cores Recovered . | . . . Used . | . . . Hacking Detections 7 | . 7 . Full Trace Events . | . . . Feedback Events . | . . . Feedback Blocked . | . . . Robot Schematics Acquired . | . . . Robots Built . | . . . Authchips . | . . . Time . | . . . Total Robot Build Rating . | . . . Part Schematics Acquired 2 | . 2 . Parts Built . | . . . Authchips . | . . . Time . | . . . Total Part Build Rating . | . . . Parts Repaired 1 | . 1 . Time 26 | . 26 . Parts Recycled . | . . . Recycled Matter . | . . . Retrieved Matter . | . . . Retrieved Components 9 | . 9 . Parts Scanalyzed . | . . . Part Schematics Acquired . | . . . Parts Damaged . | . . . Bothacking | -11 -10 -10 ------------ Run | Yrd Mat Min Used RIF Installer . | . . . Robots Hacked . | . . . Non-combat . | . . . Combat . | . . . Robot Hacks Applied . | . . . Relay Couplers Released . | . . . Fabnet Peak Effective % . | . . . Robots Rewired . | . . . Allies Hacked . | . . . Hacks Repelled . | . . . Allies | -11 -10 -10 -------- Run | Yrd Mat Min Total Allies . | . . . Largest Group . | . . . Highest-Rated Group . | . . . Highest-Rated Ally . | . . . Total Orders . | . . . Ally Attacks . | . . . Total Damage . | . . . Kills . | . . . Allies Corrupted . | . . . Allies Melted . | . . . Intel | -11 -10 -10 ------- Run | Yrd Mat Min Robot Analysis Total 2 | . 2 . Derelict Logs Recovered 1 | . . 1 Drone Launches . | . . . Drone Recoveries . | . . . Exploration | -11 -10 -10 ------------- Run | Yrd Mat Min Turns Passed 2758 | 109 2267 382 Spaces Moved 965 | 52 803 110 Core 7 | 7 . . Treads 958 | 45 803 110 Legs . | . . . Wheels . | . . . Hover . | . . . Flight . | . . . Fastest Speed 50 | 50 160 320 Average Speed 251 | 149 249 320 Slowest Speed 320 | 160 320 320 Overloaded Moves . | . . . Propulsion Burnouts . | . . . Robots Hopped . | . . . Cave-ins Triggered . | . . . Exploration Rate (%) 43 | 4 92 35 Regions Visited 2 Branch Regions 1 Pre-discovered Areas 2 | . 2 . Known Exits Taken . | . . . Unknown Exits Taken 2 | 1 1 . Scrap Searched 1 | . . 1 Spaces Dug . | . . . Terrain Destroyed 29 | . 15 14 Melee . | . . . Projectile . | . . . AOE 29 | . 15 14 Terrain Rammed . | . . . Walls Destroyed . | . . . Machines Disabled . | . . . Actions | -11 -10 -10 --------- Run | Yrd Mat Min Total 1194 | 71 994 129 Wait 89 | . 88 1 Move 963 | 51 802 110 Hop . | . . . Pick Up 36 | 7 28 1 Fast Attach 12 | 7 5 . Attach 3 | . . 3 Detach . | . . . Swap 12 | . 7 5 Drop 18 | . 17 1 Fire 61 | 6 47 8 Melee . | . . . Ram . | . . . Kick . | . . . Crush . | . . . Escape Stasis . | . . . Rewire . | . . . Trap . | . . . Miscellaneous . | . . . Route ------- -11/Scrapyard -10/Materials (discovered 5 exits: *Mat x3 / [*Min] / [*Sub]) -10/Mines (discovered 1 exit: Mat) History --------- Turn | Location | Event 13 | -11/Scrapyard | Discovered new exit (range 15) 110 | -11/Scrapyard | Entered Materials 288 | -10/Materials | Discovered new exit (range 4) 304 | -10/Materials | Build established: Mutant 772 | -10/Materials | Discovered new exit (range 13) 1559 | -10/Materials | Repaired Lgt. Treads 1636 | -10/Materials | Discovered new exit (range 10) 1834 | -10/Materials | Discovered new exit (range 16) 2142 | -10/Materials | Discovered new exit (range 8) 2377 | -10/Materials | Entered Mines 2408 | -10/Mines | Met a Derelict bent on vengeance 2411 | -10/Mines | Identified exit to Materials 2511 | -10/Mines | Found a damaged Exp. Sensor Array with a note attached 2518 | -10/Mines | Found Prototype Device 2519 | -10/Mines | Identified Exp. Sensor Array 2712 | -10/Mines | Assembled infested the area 2717 | -10/Mines | Assisted by a Guerilla fighting off Assembled 2738 | -10/Mines | System corruption reached 10% 2741 | -10/Mines | Core integrity fell below 50% 2756 | -10/Mines | Core integrity fell below 20% 2759 | -10/Mines | Destroyed by D-53 Grenadier with Mini Grenade Launcher Last Messages --------------- 02740_ as-90169 destroyed. 02740_ as-09763 destroyed. 02741_ The unstable cave ceiling collapses. 02741_ as-62854 destroyed. 02742_ The unstable cave ceiling collapses. 02742_ as-00264 destroyed. 02742_ Grenade Launcher destroyed. 02743_ The unstable cave ceiling collapses. 02744_ Lgt. Armor Plating destroyed. 02746_ Lgt. Treads destroyed. 02748_ The unstable cave ceiling collapses. 02748_ Imp. Medium Laser destroyed. 02749_ The unstable cave ceiling collapses. 02750_ Lgt. Treads destroyed. 02751_ System corrupted: Assault Rifle fused. 02752_ The unstable cave ceiling collapses. 02753_ Lgt. Armor Plating destroyed. 02755_ R-06 Scavenger collects Phase Shifter. 02757_ The unstable cave ceiling collapses. 02757_ Assault Rifle destroyed. Map ----- +----------------------------------------------------+ | ?????????????????????????????????????????????????? | | ?????????????????????????????????????????????????? | | ?????????????????????????????????????????????????? | | ?????????????????????????????????????????????????? | | ?????????????????????????????????????????????????? | | ?????????????????????????????????????????????????? | | ?????????????????????????????????????????????????? | | ?????????????????????????????????????????????????? | | ?????????????????????????????????????????????????? | | ?????????????????????????????????????????????????? | | ?????????????????????????#???????????????????????? | | ????????????????????????? ???????????????????????? | | ????????????????????????? ???????????????????????? | | ???????????????? ???????? ???????????????????????? | | ????????????????? ??????? ???????????????????????? | | ?????????????????# ?????? ???????????????????????? | | ?????????????????# ####?#=#??????????????????????? | | ?????????????????# ##!#??????????????????????? | | ?????????????????# # #=#??????????????????????? | | ?????????????????# a ** %#?????###??????????????? | | ?????????????????## %# =###?## ##???????????? | | ?????????????????# % ! ### ####????????? | | ????????????????### a ## ##???????? | | ????????????????# #???????# | | ?????????????????# d #???????# | | ?????????????????# d @ #????????# | | ?????????????????# # # ##????????# | | ?????????????????# # """ #?????????# | | ?????????????????# """ ##????????# | | ????????????????# = ### """ #????????# | | ????????????????# # # ###?# #????????# | | ??????????????? r =%*] ####???## u ##????????# | | ????????????? # #???????#### #?????????# | | ????????????? ?### k #?????????## #?????????# | | ?????????????????### ##????????## #?????????# | | ???????????????????# ??????????# #######??## | | ???????????????????# ??????????# #??# | | ??????????????????? ??????????# ##### #??# | | ??????????????????? ??????????## ##??# #??# ## | | ??????????????????? ???????????# ##?# #??# ## | | ??????????????????? ???????????## ### #### ## | | ??????????????????????????????????# | | ??????????????????????????? | | ?????????????????????????# ##### ## | | ?????????????????????????## #?### #? | | ??????????????????????????## #### ## | | ???????????????????????????## ##### ##?# # | | ????????????????????????????###????######?## | | ?????????????????????????????????????????## | | ????????????????????????????????????????## | +----------------------------------------------------+ Best States ------------- Heat Dissipation 25 Energy Generation 10 Energy Capacity 250 Matter Stores 300 Matter Capacity 300 Sight Range 16 Robot Scan Range 20 Terrain Scan Density 10 Armor Coverage 150 Evasion (%) 40 Recoil Reduction 2 Item Schematics ----------------- Huge Storage Unit | -10/Materials | Hacked Hcp. Storage Unit | -10/Materials | Hacked Robot Schematics ------------------ None Fabricated ------------ Nothing Alien Tech Used ----------------- None Achievements -------------- None Challenges ------------ None Game ------ Seed TitaniumComponentSuite Manual? 0 Play Time 00:15:18 Cumulative 182.4 hours Start 2024.07.07 @ 02:03:01 End 2024.07.07 @ 02:16:24 Sessions 1 Manual Loads 0 Difficulty Rogue Special Mode None Game No. 97 Rogue 97 Adventurer 0 Explorer 0 Win Type - Total 6 Types 3/0/2/1/0/0/0/0/0 Lore% 62 Gallery% 82 Achievement% 60 Wizard Run 0 Options --------- Layout 2 ASCII 0 Keyboard 1 Movement Numpad Keybinds 0 Fullscreen 2 Font 32/Tamsyn Map View 50x44 Zoom Use 0% Tactical HUD 1 Map Filters NONE Filters NONE Steam 1 RUN: ae6c36bd-8231-476e-a86c-0c9287a9870c